bitfinex-derivatives/quotes_BTCF0:USTF0_20251108
["timestamp","ask_amount","ask_price","bid_price","bid_amount"]
[1762572874958,0.1545962,103100.0,103090.0,0.28326986]
[1762572876860,0.5153962,103100.0,103090.0,0.28326986]
[1762572877564,0.41834,103100.0,103090.0,0.38033556]
[1762572877961,0.5153963,103100.0,103090.0,0.08975986]
[1762572878268,0.55012027,103100.0,103090.0,0.08975986]
[1762572878464,0.60220622,103100.0,103090.0,0.08975986]
[1762572878868,0.60220622,103100.0,103090.0,0.13366986]
[1762572879065,0.60220622,103100.0,103090.0,0.12966986]
[1762572879265,0.60220622,103100.0,103090.0,0.13066986]
[1762572879266,0.60820622,103100.0,103090.0,0.13066986]
[1762572880254,0.61520622,103100.0,103090.0,0.12866986]
[1762572880570,0.61520622,103100.0,103090.0,0.22573556]
[1762572880764,0.51814992,103100.0,103090.0,0.22573556]
[1762572880963,0.61520622,103100.0,103090.0,0.22573556]
[1762572882164,0.51814992,103100.0,103090.0,0.22573556]
[1762572883067,0.07054,103100.0,103090.0,0.66929542]
[1762572885166,0.10526397,103100.0,103090.0,0.66929542]
[1762572886165,0.20232027,103100.0,103090.0,0.66929542]
[1762572886364,0.20232027,103100.0,103090.0,0.61426164]
[1762572886566,0.10526397,103100.0,103090.0,0.61426164]
[1762572888675,0.14410992,103100.0,103090.0,0.62114164]
[1762572888876,0.013,103100.0,103090.0,0.62114164]
[1762572889078,0.013,103100.0,103090.0,0.77074164]
[1762572893674,0.03486957,103110.0,103100.0,0.0970563]
[1762572893870,0.03486957,103110.0,103100.0,0.62050224]
[1762572894476,0.0001456,103110.0,103100.0,0.62050224]
[1762572894974,0.0001456,103110.0,103100.0,0.77510224]
[1762572895178,0.03486957,103110.0,103100.0,0.77510224]
[1762572895680,0.05208595,103120.0,103110.0,0.04528]
[1762572895879,0.07489595,103120.0,103110.0,0.61361274]
[1762572896471,0.05208595,103120.0,103110.0,0.61361274]
[1762572897375,0.10941155,103130.0,103120.0,0.0970374]
[1762572897685,0.10941155,103130.0,103120.0,0.82840928]
[1762572898685,0.10941155,103130.0,103120.0,0.82940928]
[1762572898980,0.12691244,103130.0,103120.0,0.82940928]
[1762572899176,0.0573256,103130.0,103120.0,0.82940928]
[1762572900083,0.10951834,103130.0,103120.0,0.82940928]
[1762572900480,0.10951834,103130.0,103120.0,0.83040928]
[1762572900676,0.10951834,103130.0,103120.0,0.71992334]
[1762572900882,0.10951834,103130.0,103120.0,0.57032334]
[1762572904377,0.20654634,103130.0,103120.0,0.57032334]
[1762572904584,0.10951834,103130.0,103120.0,0.57032334]
[1762572906587,0.10951834,103130.0,103120.0,0.71992334]
[1762572908888,0.0573256,103130.0,103120.0,0.71992334]
[1762572909585,0.58474044,103130.0,103120.0,0.002]
[1762572909788,1.18474044,103130.0,103120.0,0.002]
[1762572910991,1.1151536,103130.0,103120.0,0.002]
[1762572911288,1.20835629,103130.0,103120.0,0.001]
[1762572911486,0.1548174,103120.0,103110.0,0.20753244]
[1762572911688,0.58513874,103120.0,103110.0,0.20753244]
[1762572913185,0.48810134,103120.0,103110.0,0.20753244]
[1762572913488,0.58513874,103120.0,103110.0,0.20853244]
[1762572913883,0.58513874,103120.0,103110.0,0.20953244]
[1762572915486,0.58513874,103120.0,103110.0,0.35913274]
[1762572916887,0.58513874,103120.0,103110.0,0.1516]
[1762572917196,0.5156174,103120.0,103110.0,0.1516]
[1762572917393,0.60282009,103120.0,103110.0,0.1516]
[1762572918194,0.60282009,103120.0,103110.0,0.002]
[1762572921097,0.1548457,103090.0,103080.0,0.1410982]
[1762572921291,0.20704236,103090.0,103080.0,0.25158414]
[1762572921594,0.20704236,103090.0,103080.0,0.61238414]
[1762572922098,0.20704236,103090.0,103080.0,0.25158414]
[1762572922795,0.20704236,103090.0,103080.0,0.25658414]
[1762572923391,0.20704236,103090.0,103080.0,0.15951594]
[1762572923595,0.56784236,103090.0,103080.0,0.15951594]
[1762572924095,0.56784236,103090.0,103080.0,0.26159104]
[1762572924492,0.56784236,103090.0,103080.0,0.16451594]
[1762572925196,0.56784236,103090.0,103080.0,0.14230594]
[1762572925797,0.56784236,103090.0,103080.0,0.16451594]
[1762572926594,0.56784236,103090.0,103080.0,0.05403]
[1762572926795,0.56784236,103090.0,103080.0,0.01]
[1762572927692,0.58524124,103090.0,103080.0,0.01]
[1762572928491,0.59124124,103090.0,103080.0,0.005]
[1762572929287,0.1192751,103080.0,103070.0,0.2077947]
[1762572929492,0.60335351,103080.0,103070.0,0.2515847]
[1762572930801,0.56863415,103080.0,103070.0,0.1555068]
[1762572931194,0.56863415,103080.0,103070.0,0.1565068]
[1762572931395,0.56863415,103080.0,103070.0,0.00223086]
[1762572931601,0.58615064,103080.0,103070.0,0.00223086]
[1762572931796,0.5165551,103080.0,103070.0,8.6e-07]
[1762572932304,0.58615064,103080.0,103070.0,8.6e-07]
[1762572932804,0.58623883,103080.0,103070.0,8.6e-07]
[1762572934701,0.58623883,103080.0,103070.0,0.14087536]
[1762572934903,0.56868495,103080.0,103070.0,0.2513613]
[1762572935907,0.47160985,103080.0,103070.0,0.2513613]
[1762572936295,0.09346825,103080.0,103070.0,0.2513613]
[1762572936500,0.09346825,103080.0,103070.0,0.6121613]
[1762572938009,0.08022825,103080.0,103070.0,0.6233713]
[1762572938206,0.13226991,103080.0,103070.0,0.6233713]
[1762572938510,0.09346825,103080.0,103070.0,0.5150768]
[1762572938711,0.14550991,103080.0,103070.0,0.2513613]
[1762572939009,0.05876819,103080.0,103070.0,0.6121613]
[1762572939205,0.09346825,103080.0,103070.0,0.6121613]
[1762572939909,0.19054335,103080.0,103070.0,0.5150768]
[1762572940108,0.19054335,103080.0,103070.0,0.1542768]
[1762572941211,0.19054335,103080.0,103070.0,0.2513613]
[1762572943111,0.19054335,103080.0,103070.0,0.1542768]
[1762572944309,0.19054335,103080.0,103070.0,0.2513613]
[1762572944711,0.20788495,103080.0,103070.0,0.2513613]
[1762572945806,0.20788495,103080.0,103070.0,0.1013613]
[1762572946012,0.20788495,103080.0,103070.0,0.20757044]
[1762572946312,0.15584329,103080.0,103070.0,0.20757044]
[1762572947115,0.22543883,103080.0,103070.0,0.20757044]
[1762572948414,0.22543883,103080.0,103070.0,0.26288156]
[1762572949509,0.22543883,103080.0,103070.0,0.08289853]
[1762572949713,0.58623883,103080.0,103070.0,0.08289853]
[1762572950015,0.1529845,103070.0,103060.0,0.18013263]
[1762572950211,0.5137845,103070.0,103060.0,0.18013263]
[1762572950713,0.5137845,103070.0,103060.0,0.23264413]
[1762572950908,0.58338004,103070.0,103060.0,0.23264413]
[1762572951112,0.58338004,103070.0,103060.0,0.41263656]
[1762572951316,0.58338004,103070.0,103060.0,0.41463656]
[1762572951514,0.58338004,103070.0,103060.0,0.23464413]
[1762572951715,0.58338004,103070.0,103060.0,0.33173803]
[1762572951912,0.58338004,103070.0,103060.0,0.41463656]
[1762572952314,0.58338004,103070.0,103060.0,0.26703656]
[1762572952710,0.5137845,103070.0,103060.0,0.26703656]
[1762572952909,0.60098719,103070.0,103060.0,0.16994266]
[1762572953310,0.60098719,103070.0,103060.0,0.08704413]
[1762572953917,0.60098719,103070.0,103060.0,0.18413803]
[1762572954211,0.60098719,103070.0,103060.0,0.1012395]
[1762572954417,0.60098719,103070.0,103060.0,0.18413803]
[1762572954818,0.60098719,103070.0,103060.0,0.08704413]
[1762572957021,0.60098719,103070.0,103060.0,0.18413803]
[1762572957819,0.60098719,103070.0,103060.0,0.26703656]
[1762572960615,0.60098719,103070.0,103060.0,0.16994266]
[1762572960815,0.60098719,103070.0,103060.0,0.26703656]
[1762572961532,0.14310269,103070.0,103060.0,0.26703656]
[1762572961726,0.0559,103070.0,103060.0,0.62783656]
[1762572961934,0.1529845,103070.0,103060.0,0.62783656]
[1762572963432,0.0559,103070.0,103060.0,0.62783656]
[1762572963626,0.44402751,103080.0,103070.0,0.0970845]
[1762572963834,0.12651751,103080.0,103070.0,0.26288156]
[1762572964031,0.22358525,103080.0,103060.0,0.1012304]
[1762572964232,0.14418925,103070.0,103060.0,0.54492893]
[1762572964428,0.14418925,103070.0,103060.0,0.90572893]
[1762572964630,0.12285925,103070.0,103060.0,0.90572893]
[1762572964934,0.12285925,103070.0,103060.0,0.90372893]
[1762572965434,0.12285925,103070.0,103060.0,1.06952599]
[1762572965738,0.12285925,103070.0,103060.0,1.06752599]
[1762572966734,0.12285925,103070.0,103060.0,1.07152599]
[1762572967032,0.10089925,103070.0,103060.0,1.07152599]
[1762572967635,0.10089925,103070.0,103060.0,1.06952599]
[1762572967834,0.10089925,103070.0,103060.0,1.07252599]
[1762572968235,0.14418925,103070.0,103060.0,0.8258304]
[1762572968430,0.24127375,103070.0,103060.0,0.89454266]
[1762572968625,0.20640205,103070.0,103060.0,0.17294266]
[1762572968830,0.22384076,103070.0,103060.0,0.17294266]
[1762572969432,0.22384076,103070.0,103060.0,0.16594266]
[1762572969628,0.22384076,103070.0,103060.0,0.17194266]
[1762572969829,0.12675626,103070.0,103060.0,0.17194266]
[1762572970030,0.22384076,103070.0,103060.0,0.17194266]
[1762572970630,0.22384076,103070.0,103060.0,0.16994266]
[1762572972338,0.22384076,103070.0,103060.0,0.26703656]
[1762572973041,0.12675626,103070.0,103060.0,0.26703656]
[1762572974140,0.12675626,103070.0,103060.0,0.41663656]
[1762572975242,0.22384076,103070.0,103060.0,0.41663656]
[1762572975444,0.20641419,103070.0,103060.0,0.41663656]
[1762572975840,0.20641419,103070.0,103060.0,0.31954266]
[1762572975841,0.56721419,103070.0,103060.0,0.31954266]
[1762572976038,0.5148945,103070.0,103060.0,0.31954266]
[1762572976939,0.5148945,103070.0,103060.0,0.23664413]
[1762572978540,0.60209719,103070.0,103060.0,0.23664413]
[1762572978943,0.60209719,103070.0,103060.0,0.31954266]
[1762572979339,0.60209719,103070.0,103060.0,0.41663656]
[1762572979833,0.60209719,103070.0,103060.0,0.26703656]
[1762572981547,0.5148945,103070.0,103060.0,0.26703656]
[1762572981942,0.5148945,103070.0,103060.0,0.34993509]
[1762572981943,0.06977142,103070.0,103060.0,0.34993509]
[1762572982146,0.44823648,103080.0,103070.0,0.0970845]
[1762572982147,0.12701521,103080.0,103070.0,0.0970845]
[1762572982440,0.10956256,103080.0,103070.0,0.26288156]
[1762572982645,0.1270025,103080.0,103070.0,0.26288156]
[1762572983039,0.1270025,103080.0,103070.0,0.3608]
[1762572983245,0.2240776,103080.0,103070.0,0.44369853]
[1762572983542,0.05701,103070.0,103060.0,0.54293453]
[1762572983748,0.10932652,103070.0,103060.0,0.54293453]
[1762572984547,0.10932652,103070.0,103060.0,0.62583306]
[1762572984746,0.10932652,103070.0,103060.0,0.62383306]
[1762572985548,0.10932652,103070.0,103060.0,0.70673159]
[1762572985946,0.10932652,103070.0,103060.0,0.70873159]
[1762572986342,0.10932652,103070.0,103060.0,0.58957266]
[1762572987147,0.10932652,103070.0,103060.0,0.59157266]
[1762572988745,0.10932652,103070.0,103060.0,0.74117266]
[1762572988946,0.05701,103070.0,103060.0,0.74117266]
[1762572989145,0.01372,103070.0,103060.0,0.74117266]
[1762572989347,0.0699925,103080.0,103070.0,0.0970845]
[1762572989553,0.05255074,103080.0,103070.0,0.58742116]
[1762572990659,0.05255074,103080.0,103070.0,0.58842116]
[1762572991160,0.05255074,103080.0,103070.0,0.58942116]
[1762572992155,0.06975871,103090.0,103080.0,0.22661176]
[1762572992462,0.12891871,103110.0,103100.0,0.0970563]
[1762572992658,0.12891871,103110.0,103100.0,0.58739296]
[1762572993456,0.12891871,103110.0,103100.0,0.22659296]
[1762572993861,0.14191871,103110.0,103100.0,0.22759296]
[1762572994868,0.14191871,103110.0,103100.0,0.58839296]
[1762572995458,0.15591871,103110.0,103100.0,0.58939296]
[1762572995650,0.15591871,103110.0,103100.0,0.4598563]
[1762572995855,0.15591871,103110.0,103100.0,0.13153666]
[1762572996857,0.15591871,103110.0,103100.0,0.22859296]
[1762572997256,0.08616,103110.0,103100.0,0.22859296]
[1762573000067,0.61376561,103110.0,103100.0,0.002]
[1762573000969,0.5440069,103110.0,103100.0,0.002]
[1762573001465,0.63120959,103110.0,103100.0,0.002]
[1762573002573,0.63120959,103110.0,103100.0,0.0990563]
[1762573003865,0.63120959,103110.0,103100.0,0.002]
[1762573005763,0.61355451,103110.0,103100.0,0.002]
[1762573006470,0.61355451,103110.0,103100.0,0.08488168]
[1762573006859,0.69643619,103110.0,103100.0,0.08488168]
[1762573007169,0.1547963,103100.0,103090.0,0.18008688]
[1762573007370,0.58516799,103100.0,103090.0,0.18008688]
[1762573007572,0.58516799,103100.0,103090.0,0.08302728]
[1762573007762,0.60279899,103100.0,103090.0,0.08302728]
[1762573008363,0.1548057,103090.0,103080.0,0.2466691]
[1762573008564,0.5851991,103090.0,103080.0,0.2466691]
[1762573008865,0.5851991,103090.0,103080.0,0.2076112]
[1762573009775,0.5901991,103090.0,103080.0,0.2076112]
[1762573010672,0.4991334,103090.0,103080.0,0.2086112]
[1762573012371,0.49811803,103090.0,103080.0,0.2416512]
[1762573012573,0.49111803,103090.0,103080.0,0.2406512]
[1762573012873,0.49611803,103090.0,103080.0,0.2406512]
[1762573013177,0.49211803,103090.0,103080.0,0.2406512]
[1762573013876,0.48711803,103090.0,103080.0,0.2406512]
[1762573014071,0.48711803,103090.0,103080.0,0.2416512]
[1762573015474,0.58418373,103090.0,103080.0,0.2426512]
[1762573015770,0.58418373,103090.0,103080.0,0.2416512]
[1762573015968,0.58418373,103090.0,103080.0,0.2436512]
[1762573016570,0.58418373,103090.0,103080.0,0.2426512]
[1762573016769,0.58418373,103090.0,103080.0,0.2416512]
[1762573017974,0.58418373,103090.0,103080.0,0.2416572]
[1762573020470,0.58253852,103090.0,103080.0,0.2416572]
[1762573021962,0.48547282,103090.0,103080.0,0.2416572]
[1762573022178,0.12467282,103090.0,103080.0,0.2416572]
[1762573022970,0.22173852,103090.0,103080.0,0.2416572]
[1762573023168,0.58253852,103090.0,103080.0,0.1115421]
[1762573023364,0.51294512,103090.0,103080.0,0.001]
[1762573023571,0.58253852,103090.0,103080.0,0.001]
[1762573024173,0.60014781,103090.0,103080.0,0.001]
[1762573024371,0.51294512,103090.0,103080.0,0.001]
[1762573024963,0.63472649,103090.0,103080.0,0.001]
[1762573025169,0.1542851,103080.0,103070.0,0.0001456]
[1762573025369,0.60225417,103080.0,103070.0,0.0001456]
[1762573025878,0.60225417,103080.0,103070.0,0.0972302]
[1762573026277,0.60225417,103080.0,103070.0,0.0992302]
[1762573026878,0.60225417,103080.0,103070.0,0.1002302]
[1762573027380,0.5150851,103080.0,103070.0,0.1440102]
[1762573028778,0.41801,103080.0,103070.0,0.2545523]
[1762573029277,0.5150851,103080.0,103070.0,0.2545523]
[1762573029967,0.5150851,103080.0,103070.0,0.1002302]
[1762573030175,0.5150851,103080.0,103070.0,0.1136877]
[1762573031072,0.5150851,103080.0,103070.0,0.0031456]
[1762573032584,0.5150851,103080.0,103070.0,0.1002302]
[1762573033283,0.5150851,103080.0,103070.0,0.0031456]
[1762573035384,0.60225417,103080.0,103070.0,0.0031456]
[1762573036584,0.60225417,103080.0,103070.0,0.1220402]
[1762573036993,0.60225417,103080.0,103070.0,0.0031456]
[1762573037786,0.58482158,103080.0,103070.0,0.0031456]
[1762573038685,0.05721,103060.0,103050.0,0.4010197]
[1762573038992,0.22404489,103060.0,103050.0,0.2514197]
[1762573039186,0.58484489,103060.0,103050.0,0.1408776]
[1762573039384,0.58484489,103060.0,103050.0,0.02181]
[1762573039590,0.58484489,103060.0,103040.0,0.4011743]
[1762573039591,0.1543134,103050.0,103040.0,0.4011743]
[1762573039790,0.2066171,103050.0,103040.0,0.4011743]
[1762573040691,0.2066171,103050.0,103040.0,0.4061743]
[1762573040882,0.22405429,103050.0,103040.0,0.4061743]
[1762573041285,0.1543134,103050.0,103040.0,0.4061743]
[1762573041781,0.16441759,103050.0,103040.0,0.4061743]
[1762573042182,0.23515848,103050.0,103040.0,0.4111743]
[1762573042483,0.13805508,103050.0,103040.0,0.4111743]
[1762573042688,0.06831419,103050.0,103040.0,0.4111743]
[1762573044594,0.06831419,103050.0,103040.0,0.7719743]
[1762573044786,0.12057895,103050.0,103040.0,0.7719743]
[1762573047607,0.12057895,103050.0,103040.0,0.7751243]
[1762573047811,0.12057895,103050.0,103040.0,0.8856664]
[1762573048406,0.11047476,103050.0,103040.0,0.8856664]
[1762573048907,0.14532697,103050.0,103040.0,0.8856664]
[1762573049309,0.08811697,103050.0,103040.0,0.8856664]
[1762573049610,0.03585221,103050.0,103040.0,0.8856664]
[1762573058016,0.00070661,103050.0,103040.0,0.8856664]
[1762573059409,0.02291661,103050.0,103040.0,0.8856664]
[1762573059911,0.04511661,103050.0,103040.0,0.8856664]
[1762573065027,0.09137649,103070.0,103060.0,0.117054]
[1762573065324,0.10926037,103070.0,103060.0,0.2275961]
[1762573065516,0.10926037,103070.0,103060.0,0.117054]
[1762573065712,0.10926037,103070.0,103060.0,0.2275961]
[1762573065919,0.10926037,103070.0,103060.0,0.5883961]
[1762573067321,0.0569156,103070.0,103060.0,0.5883961]
[1762573067724,0.0569156,103070.0,103060.0,0.5903961]
[1762573070326,0.0569156,103070.0,103060.0,0.72853153]
[1762573070824,0.0001456,103070.0,103060.0,0.87813153]
[1762573071127,0.07377163,103090.0,103080.0,0.1170352]
[1762573071427,0.09556163,103090.0,103080.0,1.08731273]
[1762573072228,0.04328,103090.0,103080.0,1.08731273]
[1762573073328,0.05677,103090.0,103080.0,0.8386352]
[1762573073535,0.05677,103090.0,103080.0,0.62943753]
[1762573073726,0.10905163,103090.0,103080.0,0.64362022]
[1762573073929,0.05677,103090.0,103080.0,0.64362022]
[1762573074125,0.10905163,103090.0,103080.0,0.64362022]
[1762573074431,0.05677,103090.0,103080.0,0.64362022]
[1762573074729,0.05677,103090.0,103080.0,0.72651273]
[1762573077928,0.05677,103090.0,103080.0,0.64362022]
[1762573078835,0.05677,103090.0,103080.0,0.64562022]
[1762573079036,0.10905163,103090.0,103080.0,0.64562022]
[1762573081632,0.10905163,103090.0,103080.0,0.56272771]
[1762573081839,0.56691733,103090.0,103080.0,0.08489251]
[1762573082038,0.5146357,103090.0,103080.0,0.08489251]
[1762573082434,0.58437659,103090.0,103080.0,0.08489251]
[1762573083339,0.58437659,103090.0,103080.0,0.002]
[1762573083540,0.58437659,103090.0,103080.0,0.08489251]
[1762573083740,0.5146357,103090.0,103080.0,0.08489251]
[1762573083937,1.28469728,103090.0,103080.0,0.002]
[1762573084134,1.28469728,103090.0,103070.0,0.32971991]
[1762573084435,0.58544293,103080.0,103070.0,0.32971991]
[1762573085738,0.58544293,103080.0,103070.0,0.35367991]
[1762573085935,0.58544293,103080.0,103070.0,0.33171991]
[1762573086640,0.56804319,103080.0,103070.0,0.2727874]
[1762573086941,0.56804319,103080.0,103070.0,0.23663811]
[1762573087331,0.56804319,103080.0,103070.0,0.23463811]
[1762573087532,0.56804319,103080.0,103070.0,0.08703811]
[1762573087733,0.5157852,103080.0,103070.0,0.08503811]
[1762573087946,0.5157852,103080.0,103070.0,0.08703811]
[1762573088743,0.60295427,103080.0,103070.0,0.08703811]
[1762573088944,0.6726433,103080.0,103070.0,0.08703811]
[1762573089242,0.1549946,103070.0,103060.0,0.08289251]
[1762573089433,0.5157946,103070.0,103060.0,0.08289251]
[1762573089635,0.58548363,103070.0,103060.0,0.08289251]
[1762573090343,0.58548363,103070.0,103060.0,0.08589251]
[1762573090533,0.58548363,103070.0,103060.0,0.003]
[1762573090733,0.58548363,103070.0,103060.0,0.08589251]
[1762573090935,0.5157946,103070.0,103060.0,0.08589251]
[1762573091131,0.5854661,103070.0,103060.0,0.08889251]
[1762573092437,0.5854661,103070.0,103060.0,0.21824651]
[1762573092645,0.5854661,103070.0,103060.0,0.20211651]
[1762573092838,0.5157946,103070.0,103060.0,0.20211651]
[1762573093338,0.5157946,103070.0,103060.0,0.28500902]
[1762573094143,0.56802433,103070.0,103060.0,0.30113902]
[1762573094343,0.56802433,103070.0,103060.0,0.08889251]
[1762573097048,0.155004,103060.0,103050.0,0.0001456]
[1762573097237,0.60284072,103060.0,103050.0,0.08303811]
[1762573097544,0.56803373,103060.0,103050.0,0.08303811]
[1762573098044,0.56803373,103060.0,103050.0,0.20227151]
[1762573098346,0.56803373,103060.0,103050.0,0.21027151]
[1762573098549,0.56803373,103060.0,103050.0,0.23240151]
[1762573099742,0.56803373,103060.0,103050.0,0.11316811]
[1762573100649,0.56803373,103060.0,103050.0,0.09103811]
[1762573100846,0.56803373,103060.0,103050.0,0.18814151]
[1762573101146,0.56803373,103060.0,103050.0,0.21027151]
[1762573101446,0.56803373,103060.0,103050.0,0.23240151]
[1762573103246,0.47093973,103060.0,103050.0,0.23240151]
[1762573103447,0.56803373,103060.0,103050.0,0.23240151]
[1762573105347,0.11013973,103060.0,103050.0,0.23240151]
[1762573105548,0.20723373,103060.0,103050.0,0.23240151]
[1762573108150,0.56803373,103060.0,103050.0,0.0302756]
[1762573108355,0.56803373,103060.0,103050.0,0.11316811]
[1762573108556,0.515804,103060.0,103050.0,0.11316811]
[1762573109248,0.5854755,103060.0,103050.0,0.09103811]
[1762573109654,0.5854755,103060.0,103050.0,0.0081456]
[1762573109854,0.5854755,103060.0,103050.0,0.09103811]
[1762573110555,0.56807286,103060.0,103050.0,0.09103811]
[1762573111156,0.515804,103060.0,103050.0,0.18814151]
[1762573112656,0.41871,103060.0,103050.0,0.18814151]
[1762573112859,0.515804,103060.0,103050.0,0.21027151]
[1762573113761,0.60297307,103060.0,103050.0,0.21027151]
[1762573114563,0.60297307,103060.0,103050.0,0.18814151]
[1762573115160,0.60297307,103060.0,103050.0,0.21027151]
[1762573118568,0.57965851,103060.0,103050.0,0.21027151]
[1762573118767,0.60077851,103060.0,103050.0,0.21027151]
[1762573119067,0.50368451,103060.0,103050.0,0.23180151]
[1762573119270,0.60077851,103060.0,103050.0,0.23180151]
[1762573125774,0.59650195,103060.0,103050.0,0.0081456]
[1762573125974,0.51360944,103060.0,103050.0,0.105249]
[1762573126166,0.59650195,103060.0,103050.0,0.18814151]
[1762573126369,0.51360944,103060.0,103050.0,0.18814151]
[1762573127278,0.51360944,103060.0,103050.0,0.09103811]
[1762573128572,0.60077851,103060.0,103050.0,0.09103811]
[1762573129272,0.51360944,103060.0,103050.0,0.09103811]
[1762573129867,0.58350448,103060.0,103050.0,0.18814151]
[1762573130480,0.58350448,103060.0,103050.0,0.0081456]
[1762573133777,0.58350448,103060.0,103020.0,0.0001183]
[1762573133778,0.1063623,103030.0,103020.0,0.0001183]
[1762573133975,0.1462611,103010.0,103000.0,0.03480298]
[1762573134177,0.04302,102990.0,102980.0,0.16994636]
[1762573134378,0.09534463,102990.0,102980.0,0.1564994]
[1762573134683,0.48296722,102990.0,102980.0,0.1430394]
[1762573134875,0.46549531,102990.0,102980.0,0.1564994]
[1762573135074,0.10469531,102990.0,102980.0,0.62791576]
[1762573135280,0.0523641,102990.0,102980.0,0.62791576]
[1762573135481,0.08798132,102990.0,102980.0,0.62791576]
[1762573135680,0.08798149,102990.0,102980.0,0.62791576]
[1762573136470,0.08798149,102990.0,102980.0,0.62991576]
[1762573136876,0.08798149,102990.0,102980.0,0.63091576]
[1762573137283,0.13029033,102990.0,102980.0,0.63091576]
[1762573138869,0.08727033,102990.0,102980.0,0.63091576]
[1762573139077,0.0001456,103000.0,102990.0,0.1459099]
[1762573139282,0.0001456,103000.0,102990.0,0.61732626]
[1762573140076,0.00019136,103000.0,102990.0,0.61732626]
[1762573140276,0.00019136,103000.0,102990.0,0.61832626]
[1762573140585,0.00119136,103000.0,102990.0,0.61832626]
[1762573141086,0.00119136,103000.0,102990.0,0.76792626]
[1762573141272,0.00119136,103000.0,102990.0,1.01064626]
[1762573141482,0.00119136,103000.0,102990.0,1.72126262]
[1762573141678,0.00119136,103000.0,102990.0,1.61064626]
[1762573143281,0.00119136,103000.0,102990.0,1.36792626]
[1762573143483,0.00119136,103000.0,102990.0,1.61064626]
[1762573144277,0.00119136,103000.0,102990.0,1.46104626]
[1762573145378,0.00119136,103000.0,102990.0,0.86104626]
[1762573146084,0.00119136,103000.0,102990.0,0.61832626]
[1762573146385,0.00119136,103000.0,102990.0,0.86104626]
[1762573146585,0.00119136,103000.0,102990.0,0.61832626]
[1762573146787,0.00119136,103000.0,102990.0,0.97166262]
[1762573146992,0.11296089,103030.0,103020.0,0.1535916]
[1762573147191,0.11296089,103030.0,103020.0,0.26420796]
[1762573147582,0.09796121,103030.0,103020.0,0.26420796]
[1762573147786,0.10789793,103030.0,103020.0,0.26420796]
[1762573147987,0.05556672,103030.0,103020.0,0.26420796]
[1762573149192,0.06356672,103030.0,103020.0,0.26520796]
[1762573149386,0.07356672,103030.0,103020.0,0.26620796]
[1762573149583,0.06363,103030.0,103020.0,0.26620796]
[1762573150090,0.06363,103030.0,103020.0,0.62700796]
[1762573151795,0.5215522,103030.0,103020.0,0.16907636]
[1762573152087,0.5344322,103030.0,103020.0,0.002]
[1762573152287,0.60433942,103030.0,103020.0,0.002]
[1762573152495,0.1556416,103020.0,103010.0,0.0001456]
[1762573152690,0.58594812,103020.0,103010.0,0.0001456]
[1762573153192,0.69656448,103020.0,103010.0,0.0001456]
[1762573153792,0.05851,102990.0,102980.0,0.66842636]
[1762573153993,0.1556699,102990.0,102980.0,0.80978026]
[1762573154493,0.1556699,102990.0,102980.0,0.25197026]
[1762573154690,0.5164699,102990.0,102980.0,0.25197026]
[1762573155095,0.56860998,102990.0,102980.0,0.25197026]
[1762573155396,0.56860998,102990.0,102980.0,0.25397026]
[1762573156496,0.56860998,102990.0,102980.0,0.1433539]
[1762573157094,0.47145008,102990.0,102980.0,0.1433539]
[1762573157893,0.56860998,102990.0,102980.0,0.1433539]
[1762573160196,0.56860998,102990.0,102980.0,0.1433594]
[1762573162195,0.58597642,102990.0,102980.0,0.1433594]
[1762573163101,0.48881652,102990.0,102980.0,0.1433594]
[1762573163302,0.58597642,102990.0,102980.0,0.1433594]
[1762573164294,0.58597642,102990.0,102980.0,0.002]
[1762573164496,0.58597642,102990.0,102980.0,0.0991694]
[1762573165000,0.58597642,102990.0,102980.0,0.04619]
[1762573165196,0.58597642,102990.0,102980.0,0.1433594]
[1762573165592,0.48881652,102990.0,102980.0,0.1433594]
[1762573165796,0.58597642,102990.0,102980.0,0.1433594]
[1762573166696,0.22517642,102990.0,102980.0,0.1433594]
[1762573169201,0.1556699,102990.0,102980.0,0.1433594]
[1762573169502,0.05851,102990.0,102980.0,0.1433594]
[1762573170201,0.12801652,102990.0,102980.0,0.1433594]
[1762573170390,0.22517642,102990.0,102980.0,0.1433594]
[1762573173708,0.58597642,102990.0,102980.0,0.1433594]
[1762573176517,0.58597642,102990.0,102980.0,0.25410965]
[1762573178209,0.58597642,102990.0,102980.0,0.15694025]
[1762573178725,0.58597642,102990.0,102980.0,0.04619]
[1762573179613,0.58697642,102990.0,102980.0,0.04619]
[1762573179916,0.58697642,102990.0,102980.0,0.002]
[1762573180122,0.5174699,102990.0,102980.0,0.002]
[1762573180321,0.60485393,102990.0,102980.0,0.002]
[1762573181812,0.60485393,102990.0,102980.0,0.02345]
[1762573182617,0.60485393,102990.0,102980.0,0.002]
[1762573183023,0.63925127,102990.0,102980.0,0.002]
[1762573184618,0.1540994,102980.0,102970.0,0.40217425]
[1762573184916,0.60230984,102980.0,102970.0,0.40217425]
[1762573185919,0.60230984,102980.0,102970.0,0.40417425]
[1762573188023,0.60230984,102980.0,102970.0,0.25457425]
[1762573188522,0.08741044,102980.0,102970.0,0.62922425]
[1762573188727,0.06991274,102980.0,102970.0,0.62922425]
[1762573188930,0.47500274,102990.0,102980.0,0.1553494]
[1762573189119,0.47500274,102990.0,102980.0,0.26609965]
[1762573190126,0.11420274,102990.0,102980.0,0.26609965]
[1762573191528,0.11520274,102990.0,102980.0,0.26609965]
[1762573192424,0.11520274,102990.0,102980.0,0.32142378]
[1762573193128,0.04529,102990.0,102980.0,0.32142378]
[1762573193623,0.11520274,102990.0,102980.0,0.32142378]
[1762573194034,0.07091274,102990.0,102980.0,0.40446097]
[1762573194232,0.07091274,102990.0,102980.0,0.68222378]
[1762573194233,0.001,102990.0,102980.0,0.68222378]
[1762573194629,0.02381,102990.0,102980.0,0.68222378]
[1762573195232,0.04529,102990.0,102980.0,0.68222378]
[1762573197029,0.001,102990.0,102980.0,0.68222378]
[1762573197237,0.09808263,102990.0,102980.0,0.5161494]
[1762573197434,0.09808263,102990.0,102980.0,0.68222378]
[1762573199633,0.20846253,102990.0,102980.0,0.30774378]
[1762573200027,0.1560599,102990.0,102980.0,0.30774378]
[1762573201127,0.22597264,102990.0,102980.0,0.1416694]
[1762573201331,0.22597264,102990.0,102980.0,0.22470659]
[1762573201629,0.22597264,102990.0,102980.0,0.12753719]
[1762573201837,0.1550694,102980.0,102970.0,0.58441859]
[1762573202038,0.22498214,102980.0,102970.0,0.58441859]
[1762573203240,0.12781274,102980.0,102970.0,0.58441859]
[1762573203539,0.12781274,102980.0,102970.0,0.58641859]
[1762573204339,0.22498214,102980.0,102970.0,0.58641859]
[1762573204638,0.22498214,102980.0,102970.0,0.22561859]
[1762573205032,0.59890659,102980.0,102970.0,0.0021456]
[1762573205232,0.60327984,102980.0,102970.0,0.0021456]
[1762573206541,0.68631703,102980.0,102970.0,0.0021456]
[1762573207337,0.68631703,102980.0,102970.0,0.0993244]
[1762573207541,0.5158694,102980.0,102970.0,0.0993244]
[1762573208037,0.5158694,102980.0,102970.0,0.18236159]
[1762573208741,0.5158694,102980.0,102970.0,0.08518279]